{"text_format":"1","workbook":"xlsx","n_sheets":3,"sheets":["Sheet1","Sheet2","Sheet3"],"not_rendered":{"charts":0,"images":3,"macros":1,"external_links":0,"defined_names":11,"comments":0,"pivot_tables":0},"unopened":[],"bounds":{"document_bytes":16777216,"sheet_cells":100000,"rows_first":2000,"rows_last":500,"rows_between":2000,"halvings":0,"cell_chars":16384,"cell_head_chars":4096},"cells_cut":0,"cells_raw":0,"read":"whole","date_system":"1900"}

{"sheet":"Sheet1","index":0,"n_rows":50,"n_cols":31,"rows_kept":50,"cut":false,"hidden":false,"merged":[]}
["ID","PHASE",null,"TITLE","DISTRIBUTOR","ISBN","GRADE",null,"CLASSNAME",null,"CYCLE","SUBJECT",null,"LEARNERS","TOTAL","GOOD","TORN","NEED","ISSUED",null,null,null,null,null,null,null,null,null,null,"FET","GET"]
[null,"FET","\u0080",null,null,null,null,"\u0080",null,"\u0080",null,null,"\u0080",null,null,null,{"$f":"O2-P2","v":0},{"$f":"O2-N2","v":0},null,null,null,null,null,null,"FET","GET"]
[null,null,"\u0080",null,null,null,null,"\u0080",null,"\u0080",null,null,"\u0080",null,null,null,{"$f":"O3-P3","v":0},{"$f":"O3-N3","v":0},null,null,null,null,null,"GRADE","Home_Language","Home_Language","CLASS"]
[null,null,"\u0080",null,null,null,null,"\u0080",null,"\u0080",null,null,"\u0080",null,null,null,0,0,null,null,null,null,null,"GRADE 08","First_Additional_Language","First_Additional_Language","A"]
[null,null,"\u0080",null,null,null,null,"\u0080",null,"\u0080",null,null,"\u0080",null,null,null,0,0,null,null,null,null,null,"GRADE 09","Mathematics","Mathematics","B"]
[null,null,"\u0080",null,null,null,null,"\u0080",null,"\u0080",null,null,"\u0080",null,null,null,{"$f":"O6-P6","v":0},0,null,null,null,null,null,"GRADE 10","Mathematics_Literacy"," Natural_Sciences","C"]
[null,null,"\u0080",null,null,null,null,"\u0080",null,"\u0080",null,null,"\u0080",null,null,null,0,0,null,null,null,null,null,"GRADE 11","Life_Orientation"," Social_Sciences","D"]
[null,null,"\u0080",null,null,null,null,"\u0080",null,"\u0080",null,null,"\u0080",null,null,null,0,0,null,null,null,null,null,"GRADE 12","Accounting"," Technology","E"]
[null,null,"\u0080",null,null,null,null,"\u0080",null,"\u0080",null,null,"\u0080",null,null,null,0,0,null,null,null,null,null,null,"Agricultural_Sciences"," Economic_Management_Sciences","F"]
[null,null,"\u0080",null,null,null,null,"\u0080",null,"\u0080",null,null,"\u0080",null,null,null,0,0,null,null,null,null,null,null,"Dramatic_Art"," Life_Orientation","G"]
[null,null,"\u0080",null,null,null,null,"\u0080",null,"\u0080",null,null,"\u0080",null,null,null,0,0,null,null,null,null,null,null,"Economics"," Creative_Arts","H"]
[null,null,"\u0080",null,null,null,null,"\u0080",null,"\u0080",null,null,"\u0080",null,null,null,0,0,null,null,null,null,null,null,"Engineering_Graphics and_Design",null,"I"]
[null,null,"\u0080",null,null,null,null,"\u0080",null,"\u0080",null,null,"\u0080",null,null,null,0,0,null,null,null,null,null,null,"Geography",null,"J"]
[null,null,"\u0080",null,null,null,null,"\u0080",null,"\u0080",null,null,"\u0080",null,null,null,0,0,null,null,null,null,null,null,"History",null,"GRADE"]
[null,null,"\u0080",null,null,null,null,"\u0080",null,"\u0080",null,null,"\u0080",null,null,null,0,0,null,null,null,null,null,null,"Consumer_Studies"]
[null,null,"\u0080",null,null,null,null,"\u0080",null,"\u0080",null,null,"\u0080",null,null,null,0,0,null,null,null,null,null,null,"Information_Technology"]
[null,null,"\u0080",null,null,null,null,"\u0080",null,"\u0080",null,null,"\u0080",null,null,null,0,0,null,null,null,null,null,null,"Languages"]
[null,null,"\u0080",null,null,null,null,"\u0080",null,"\u0080",null,null,"\u0080",null,null,null,0,0,null,null,null,null,null,null,"Life_Science"]
[null,null,"\u0080",null,null,null,null,"\u0080",null,"\u0080",null,null,"\u0080",null,null,null,0,0,null,null,null,null,null,null,"Music"]
[null,null,"\u0080",null,null,null,null,"\u0080",null,"\u0080",null,null,"\u0080",null,null,null,0,0,null,null,null,null,null,null,"Physical_Science"]
[null,null,"\u0080",null,null,null,null,"\u0080",null,"\u0080",null,null,"\u0080",null,null,null,0,0,null,null,null,null,null,null,"Relegion_Studies"]
[null,null,"\u0080",null,null,null,null,"\u0080",null,"\u0080",null,null,"\u0080",null,null,null,0,0,null,null,null,null,null,null,"Visual_Arts"]
[null,null,"\u0080",null,null,null,null,"\u0080",null,"\u0080",null,null,"\u0080",null,null,null,0,0,null,null,null,null,null,null,"Civil_Technogy"]
[null,null,"\u0080",null,null,null,null,"\u0080",null,"\u0080",null,null,"\u0080",null,null,null,0,0,null,null,null,null,null,null,"Computer_Appplication_Technology"]
[null,null,"\u0080",null,null,null,null,"\u0080",null,"\u0080",null,null,"\u0080",null,null,null,0,0,null,null,null,null,null,null,"Dance_Studies"]
[null,null,"\u0080",null,null,null,null,"\u0080",null,"\u0080",null,null,"\u0080",null,null,null,0,0,null,null,null,null,null,null,"Electical_Technogy"]
[null,null,null,null,null,null,null,"\u0080",null,"\u0080",null,null,"\u0080",null,null,null,0,0,null,null,null,null,null,null,"Mechanical_Technology"]
[null,null,null,null,null,null,null,"\u0080",null,"\u0080",null,null,"\u0080",null,null,null,0,0,null,null,null,null,null,null,"Tourism"]
[null,null,null,null,null,null,null,"\u0080",null,"\u0080",null,null,"\u0080"]
[null,null,null,null,null,null,null,"\u0080",null,"\u0080",null,null,"\u0080"]
[null,null,null,null,null,null,null,"\u0080",null,"\u0080",null,null,"\u0080"]
[null,null,null,null,null,null,null,"\u0080",null,"\u0080",null,null,"\u0080"]
[null,null,null,null,null,null,null,"\u0080",null,"\u0080",null,null,"\u0080"]
[null,null,null,null,null,null,null,"\u0080",null,"\u0080",null,null,"\u0080"]
[null,null,null,null,null,null,null,"\u0080",null,"\u0080",null,null,"\u0080"]
[null,null,null,null,null,null,null,"\u0080",null,"\u0080",null,null,"\u0080"]
[null,null,null,null,null,null,null,"\u0080",null,"\u0080",null,null,"\u0080"]
[null,null,null,null,null,null,null,"\u0080",null,"\u0080",null,null,"\u0080"]
[null,null,null,null,null,null,null,"\u0080",null,"\u0080",null,null,"\u0080"]
[null,null,null,null,null,null,null,"\u0080",null,"\u0080",null,null,"\u0080"]
[null,null,null,null,null,null,null,"\u0080",null,"\u0080",null,null,"\u0080"]
[null,null,null,null,null,null,null,"\u0080",null,"\u0080",null,null,"\u0080"]
[null,null,null,null,null,null,null,"\u0080",null,"\u0080",null,null,"\u0080"]
[null,null,null,null,null,null,null,"\u0080",null,"\u0080",null,null,"\u0080"]
[null,null,null,null,null,null,null,"\u0080",null,"\u0080",null,null,"\u0080"]
[null,null,null,null,null,null,null,"\u0080",null,"\u0080",null,null,"\u0080"]
[null,null,null,null,null,null,null,"\u0080",null,"\u0080",null,null,"\u0080"]
[null,null,null,null,null,null,null,"\u0080",null,"\u0080",null,null,"\u0080"]
[null,null,null,null,null,null,null,"\u0080",null,"\u0080",null,null,"\u0080"]
[null,null,null,null,null,null,null,"\u0080",null,"\u0080",null,null,"\u0080"]

{"sheet":"Sheet2","index":1,"n_rows":30,"n_cols":37,"rows_kept":30,"cut":false,"hidden":false,"merged":[]}
[null,null,null,null,null,null,null,null,null,null,null,null,null,null,null,null,null,null,null,null,null,null,null,null,null,null,null,null,null,null,null,null,"PHASE"]
["ID","LEARNER","PHASE","GRADE","CLASSNAME","SUBJECT","CEMIS","TEXTBOOK"," NUM","Q1","LQ1","DQ1","Q2","LQ2","DQ2","Q3","LQ3","DQ3","Q4","LQ4","DQ4","ISSUED",null,null,null,null,null,null,null,null,null,null,"FET"]
[null,null,null,null,null,null,null,null,null,null,null,null,null,null,null,null,null,null,null,null,null,null,null,null,null,null,null,null,null,null,null,null,"GET",null,"FET","GET","CLASS"]
[null,null,null,null,null,null,null,null,null,null,null,null,null,null,null,null,null,null,null,null,null,null,null,null,null,null,null,null,null,null,null,null,null,null,"Home_Language","Home_Language","A"]
[null,null,null,null,null,null,null,null,null,null,null,null,null,null,null,null,null,null,null,null,null,null,null,null,null,null,null,null,null,null,null,null,null,null,"First_Additional_Language","First_Additional_Language","B"]
[null,null,null,null,null,null,null,null,null,null,null,null,null,null,null,null,null,null,null,null,null,null,null,null,null,null,null,null,null,null,null,null,"GRADE",null,"Mathematics","Mathematics","C"]
[null,null,null,null,null,null,null,null,null,null,null,null,null,null,null,null,null,null,null,null,null,null,null,null,null,null,null,null,null,null,null,null,"GRADE 08",null,"Mathematics_Literacy"," Natural_Sciences","D"]
[null,null,null,null,null,null,null,null,null,null,null,null,null,null,null,null,null,null,null,null,null,null,null,null,null,null,null,null,null,null,null,null,"GRADE 09",null,"Life_Orientation"," Social_Sciences","E"]
[null,null,null,null,null,null,null,null,null,null,null,null,null,null,null,null,null,null,null,null,null,null,null,null,null,null,null,null,null,null,null,null,"GRADE 10",null,"Accounting"," Technology","F"]
[null,null,null,null,null,null,null,null,null,null,null,null,null,null,null,null,null,null,null,null,null,null,null,null,null,null,null,null,null,null,null,null,"GRADE 11",null,"Agricultural_Sciences"," Economic_Management_Sciences","G"]
[null,null,null,null,null,null,null,null,null,null,null,null,null,null,null,null,null,null,null,null,null,null,null,null,null,null,null,null,null,null,null,null,"GRADE 12",null,"Dramatic_Art"," Life_Orientation","H"]
[null,null,null,null,null,null,null,null,null,null,null,null,null,null,null,null,null,null,null,null,null,null,null,null,null,null,null,null,null,null,null,null,null,null,"Economics"," Creative_Arts","I"]
[null,null,null,null,null,null,null,null,null,null,null,null,null,null,null,null,null,null,null,null,null,null,null,null,null,null,null,null,null,null,null,null,null,null,"Engineering_Graphics and_Design",null,"J"]
[null,null,null,null,null,null,null,null,null,null,null,null,null,null,null,null,null,null,null,null,null,null,null,null,null,null,null,null,null,null,null,null,null,null,"Geography"]
[null,null,null,null,null,null,null,null,null,null,null,null,null,null,null,null,null,null,null,null,null,null,null,null,null,null,null,null,null,null,null,null,null,null,"History"]
[null,null,null,null,null,null,null,null,null,null,null,null,null,null,null,null,null,null,null,null,null,null,null,null,null,null,null,null,null,null,null,null,null,null,"Consumer_Studies"]
[null,null,null,null,null,null,null,null,null,null,null,null,null,null,null,null,null,null,null,null,null,null,null,null,null,null,null,null,null,null,null,null,null,null,"Information_Technology"]
[null,null,null,null,null,null,null,null,null,null,null,null,null,null,null,null,null,null,null,null,null,null,null,null,null,null,null,null,null,null,null,null,null,null,"Languages"]
[null,null,null,null,null,null,null,null,null,null,null,null,null,null,null,null,null,null,null,null,null,null,null,null,null,null,null,null,null,null,null,null,null,null,"Life_Science"]
[null,null,null,null,null,null,null,null,null,null,null,null,null,null,null,null,null,null,null,null,null,null,null,null,null,null,null,null,null,null,null,null,null,null,"Music"]
[null,null,null,null,null,null,null,null,null,null,null,null,null,null,null,null,null,null,null,null,null,null,null,null,null,null,null,null,null,null,null,null,null,null,"Physical_Science"]
[null,null,null,null,null,null,null,null,null,null,null,null,null,null,null,null,null,null,null,null,null,null,null,null,null,null,null,null,null,null,null,null,null,null,"Relegion_Studies"]
[null,null,null,null,null,null,null,null,null,null,null,null,null,null,null,null,null,null,null,null,null,null,null,null,null,null,null,null,null,null,null,null,null,null,"Visual_Arts"]
[null,null,null,null,null,null,null,null,null,null,null,null,null,null,null,null,null,null,null,null,null,null,null,null,null,null,null,null,null,null,null,null,"Visual_Arts",null,"Civil_Technogy"]
[null,null,null,null,null,null,null,null,null,null,null,null,null,null,null,null,null,null,null,null,null,null,null,null,null,null,null,null,null,null,null,null,"Civil_Technogy",null,"Computer_Appplication_Technology"]
[null,null,null,null,null,null,null,null,null,null,null,null,null,null,null,null,null,null,null,null,null,null,null,null,null,null,null,null,null,null,null,null,"Computer_Appplication_Technology",null,"Dance_Studies"]
[null,null,null,null,null,null,null,null,null,null,null,null,null,null,null,null,null,null,null,null,null,null,null,null,null,null,null,null,null,null,null,null,"Dance_Studies",null,"Electical_Technogy"]
[null,null,null,null,null,null,null,null,null,null,null,null,null,null,null,null,null,null,null,null,null,null,null,null,null,null,null,null,null,null,null,null,"Electical_Technogy",null,"Mechanical_Technology"]
[null,null,null,null,null,null,null,null,null,null,null,null,null,null,null,null,null,null,null,null,null,null,null,null,null,null,null,null,null,null,null,null,"Mechanical_Technology",null,"Tourism"]
[null,null,null,null,null,null,null,null,null,null,null,null,null,null,null,null,null,null,null,null,null,null,null,null,null,null,null,null,null,null,null,null,"Tourism"]

{"sheet":"Sheet3","index":2,"n_rows":28,"n_cols":3,"rows_kept":28,"cut":false,"hidden":true,"merged":[]}
["Select Phase"]
["GET","FET","GET"]
["FET","Home_Language","Home_Language"]
[null,"First_Additional_Language","First_Additional_Language"]
[null,"Mathematics","Mathematics"]
[null,"Mathematics_Literacy"," Natural_Sciences"]
[null,"Life_Orientation"," Social_Sciences"]
[null,"Accounting"," Technology"]
[null,"Agricultural_Sciences"," Economic_Management_Sciences"]
[null,"Dramatic_Art"," Life_Orientation"]
[null,"Economics"," Creative_Arts"]
[null,"Engineering_Graphics and_Design"]
[null,"Geography"]
[null,"History"]
[null,"Consumer_Studies"]
[null,"Information_Technology"]
[null,"Languages"]
[null,"Life_Science"]
[null,"Music"]
[null,"Physical_Science"]
[null,"Relegion_Studies"]
[null,"Visual_Arts"]
[null,"Civil_Technogy"]
[null,"Computer_Appplication_Technology"]
[null,"Dance_Studies"]
[null,"Electical_Technogy"]
[null,"Mechanical_Technology"]
[null,"Tourism"]